Cogmind - Beta 16.1 @@@ ROGUE MODE // 2026.02.10 @ 19:05:27 Player: beans Result: Destroyed by as-88245 with Assembled Heavy Rifle Performance ------------- Evolutions (1) 500 Regions Visited (4) 800 Robots Destroyed (52) 260 Value Destroyed (1157) 1157 Prototype IDs (1) 20 Alien Tech Used (0) 0 Bonus (217) 217 TOTAL SCORE: 2954 Bonus ------- High Alert Combat Kills 19 Follower Combat Kills 198 Cogmind --------- Core Integrity 0/400 Matter 300/300 Energy 59/100 System Corruption 3% Temperature Cool (6) Movement Flying (32) Location -9/Mines Parts ------- > --- POWER (1) -------- (None) > --- PROPULSION (2) --- Cesium-ion Thruster Cesium-ion Thruster > --- UTILITY (3) ------ (None) > --- WEAPON (3) ------- Heavy Ion Cannon > --- INVENTORY (5) ---- Combat Airjet Peak State ------------ > --- POWER ------------ Light Deuterium Engine > --- PROPULSION ------- Cesium-ion Thruster Cesium-ion Thruster > --- UTILITY ---------- Core Shielding Shock Absorption System > --- WEAPON ----------- Mini Grenade Launcher > --- INVENTORY -------- Combat Airjet Cesium-ion Thruster Heavy Ion Cannon [Rating: 17] Favorites ----------- Power Heavy Ion Engine Engine Heavy Ion Engine Propulsion Aluminum Leg Treads Improved Treads Leg Aluminum Leg Flight Unit Cesium-ion Thruster Utility Backup Plating I Device Improved Heat Sink Protection Backup Plating I Weapon Improved Light Cannon Energy Cannon Heavy Ion Cannon Ballistic Gun Assault Rifle Ballistic Cannon Improved Light Cannon Launcher Mini Grenade Launcher Build | -11 -10 -10 -9 -9 ------- Run | Yrd Mat Min Mat Min Slots Evolved 2 | . . . 2 . Power . | . . . . . Propulsion . | . . . . . Utility 1 | . . . 1 . Weapon 1 | . . . 1 . Parts Attached 24 | 4 4 . 3 13 Power 3 | . 1 . 1 1 Engine 3 | . 1 . 1 1 Core . | . . . . . Reactor . | . . . . . Propulsion 6 | 2 . . . 4 Treads 1 | . . . . 1 Leg 2 | 2 . . . . Wheel . | . . . . . Hover . | . . . . . Flight 3 | . . . . 3 Utility 5 | . 1 . . 4 Device 2 | . . . . 2 Storage . | . . . . . Processor . | . . . . . Hackware . | . . . . . Protection 3 | . 1 . . 2 Artifact . | . . . . . Weapon 10 | 2 2 . 2 4 Energy Gun . | . . . . . Energy Cannon 1 | . . . . 1 Ballistic Gun 4 | 2 . . . 2 Ballistic Cannon 4 | . 2 . 2 . Launcher 1 | . . . . 1 Special Weapon . | . . . . . Impact Weapon . | . . . . . Slashing Weapon . | . . . . . Piercing Weapon . | . . . . . Special Melee Weapon . | . . . . . Unidentified Prototypes 1 | . . . 1 . Corrupted Parts 1 | . . . . 1 System Corruption 3 | . . . . 3 Parts Lost 16 | . . . 1 15 Power 2 | . . . . 2 Propulsion 4 | . . . . 4 Utility 4 | . . . 1 3 Weapon 6 | . . . . 6 Highest Loss Streak 7 | . . . 1 7 To Critical Strikes . | . . . . . Average Backups 3 | 1 3 4 4 3 Power . | . . . . . Propulsion 1 | . . . 2 2 Utility . | . . . . . Weapon 2 | . 3 4 2 1 Tool/Special . | . . . . . Unused Backups 1 | . . . . 1 Power . | . . . . . Propulsion 1 | . . . . 1 Utility . | . . . . . Weapon . | . . . . . Tool/Special . | . . . . . Average Slot Usage (%) 66 | . 78 85 71 51 Engine 10 | . 11 14 11 7 Treads 1 | . . . . 3 Leg 15 | . 28 28 22 2 Flight 2 | . . . . 5 Protection 7 | . 10 14 7 5 Ballistic Gun 13 | . 17 28 10 11 Ballistic Cannon 12 | . 10 . 20 11 Peak Build Rating 17 | 4 9 7 13 17 Average Rating 9 | 2 7 7 11 10 On Entrance 6 | . 4 7 7 12 Avg Prop Armor Cover (%) . | . . . . . Naked Turns . | . . . . . Heaviest Build 25 | 4 16 12 21 25 Greatest Support 23 | 20 20 20 20 23 Greatest Overweight (x) 5 | . . . 1 5 Average Overweight (x) . | . . . . . Largest Inventory Capacity 5 | 5 5 5 5 5 Average Capacity 5 | 5 5 5 5 5 Most Carried 5 | 4 5 4 5 5 Average Carried 3 | . 3 4 4 3 Final Capacity 5 | 5 5 5 5 5 Final Carried 5 | . 4 4 5 1 Class Distribution -------------------- 44% | Mutant 29% | Tank 17% | Gunner 9% | Sprinter Dominant Class ---------------- Mutant | -10/Materials Mutant | -10/Mines Tank | -9/Materials Tank | -9/Mines Resources | -11 -10 -10 -9 -9 ----------- Run | Yrd Mat Min Mat Min Matter Collected 1693 | 133 411 . 564 585 Remotely . | . . . . . Salvage Created 1271 | . 369 . 587 315 Parts 97 | . 36 . 38 23 Haulers Intercepted 1 | . 1 . . . Recyclers Shooed 1 | . . . . 1 Parts Field Recycled . | . . . . . Retrieved Matter . | . . . . . Parts Self-Destructed . | . . . . . Prevented . | . . . . . Parts Restored . | . . . . . Kills | -11 -10 -10 -9 -9 ------- Run | Yrd Mat Min Mat Min Combat Hostiles Destroyed 49 | . 9 . 15 25 Guns 11 | . 7 . 1 3 Cannons 27 | . 2 . 14 11 AOE 11 | . . . . 11 Classes Destroyed 12 | . 7 . 3 2 Worker 4 | . 3 . . 1 Builder 4 | . . . 3 1 Tunneler 1 | . 1 . . . Hauler 1 | . 1 . . . Recycler 2 | . 1 . 1 . Watcher 4 | . 2 . 2 . Swarmer 15 | . 6 . 2 7 Grunt 13 | . 3 . 7 3 Brawler 1 | . . . 1 . Sentry 5 | . . . 5 . Demolisher 2 | . . . . 2 Assembled 13 | . . . . 13 Best Kill Streak 10 | . 3 . 10 10 Combat Bots Only 10 | . 3 . 7 10 Max Kills in Single Turn 3 | . 2 . 2 3 Gunslinging 1 | . 1 . . 1 Exploded 3 | . . . . 3 Melee . | . . . . . Uniques/NPCs Destroyed . | . . . . . Combat | -11 -10 -10 -9 -9 -------- Run | Yrd Mat Min Mat Min Hostile Shots Fired 225 | . 42 . 52 131 Missed 62 | . 13 . 9 40 Hits 163 | . 29 . 43 91 Melee 2 | . . . 1 1 Projectile 161 | . 29 . 42 90 AOE 19 | . . . . 19 Critical Strikes 1 | . . . 1 . Damage Taken 2518 | . 284 . 564 1670 Core 435 | . 21 . 74 340 Absorbed by Shields . | . . . . . Redirected to Shielding 29 | . . . . 29 Ignored by Resistances 16 | . . . . 16 Core Remaining (%) 95 | 100 . 91 . . Volleys Fired 154 | . 44 . 46 64 Largest 3 | . 2 . 3 3 Hottest 99 | . 66 . 99 99 Shots Fired 344 | . 88 . 135 121 Gun 117 | . 50 . 13 54 Cannon 213 | . 38 . 122 53 Launcher 14 | . . . . 14 Special . | . . . . . Kinetic 320 | . 88 . 135 97 Thermal 10 | . . . . 10 Explosive 14 | . . . . 14 Electromagnetic . | . . . . . Robot Hit Streak 8 | . 6 . 6 8 Robot Miss Streak 8 | . 4 . 5 8 Penetration Max . | . . . . . Secondary Targets 2 | . 1 . . 1 Max Gunslinging Chain 1 | . 1 . . 1 Shots Hit Robots 148 | . 43 . 61 44 Core Hits 88 | . 18 . 25 45 Critical Kills 1 | . . . . 1 Critical Parts Destroyed . | . . . . . Critical Strikes 7 | . 1 . 5 1 Destroy 1 | . . . . 1 Blast 6 | . 1 . 5 . Melee Attacks . | . . . . . Impact . | . . . . . Slashing . | . . . . . Piercing . | . . . . . Sneak Attacks . | . . . . . Combat Hostiles . | . . . . . Follow-up Attacks . | . . . . . Damage Inflicted 3807 | . 737 . 1394 1676 Guns 617 | . 318 . 57 242 Cannons 2144 | . 419 . 1337 388 Explosions 1044 | . . . . 1044 Melee . | . . . . . Ramming 2 | . . . . 2 Kinetic 2681 | . 737 . 1394 550 Thermal 80 | . . . . 80 Explosive 1044 | . . . . 1044 Electromagnetic . | . . . . . Impact . | . . . . . Slashing . | . . . . . Piercing . | . . . . . Highest Corruption 3 | . . . . 3 Average Corruption 3 | . . . . 3 Corruption Purged . | . . . . . Corruption Blocked . | . . . . . Effects 9 | . . . . 9 Message Errors 2 | . . . . 2 Energy Discharges 2 | . . . . 2 Parts Rejected 1 | . . . . 1 Data Loss (minor) 2 | . . . . 2 Weapon Failures 2 | . . . . 2 Overload Shots . | . . . . . Overflow Damage 55 | . . . 3 52 Projectiles 3 | . . . 3 . Explosions 52 | . . . . 52 Melee . | . . . . . Knockbacks 16 | . 2 . 13 1 Impact . | . . . . . Kinetic 14 | . 2 . 11 1 Secondary 2 | . . . 2 . Self-Inflicted Damage 118 | . . . . 118 Shots 4 | . . . . 4 Rammed 1 | . . . . 1 Targets Rammed 1 | . . . . 1 Kicked . | . . . . . Crushed . | . . . . . Highest Temperature 259 | . 66 . 259 108 Average Temperature 60 | . 16 . 83 43 Received Heat Transfer 342 | . 84 . 222 36 Effects 1 | . . . 1 . Interference 1 | . . . 1 . Siege Activations . | . . . . . Martial Activations . | . . . . . Shielding Activations . | . . . . . Robots Disrupted . | . . . . . Combat Hostiles . | . . . . . Robots Corrupted . | . . . . . Combat Hostiles . | . . . . . Parts Fried . | . . . . . Impact Corruptions . | . . . . . Robots Melted . | . . . . . Combat Hostiles . | . . . . . Parts Melted 1 | . . . 1 . Heat Transferred 111 | . . . . 111 Parts Sabotaged . | . . . . . Parts Stolen . | . . . . . Parts Stripped . | . . . . . Power Chain Reactions . | . . . . . Alert | -11 -10 -10 -9 -9 ------- Run | Yrd Mat Min Mat Min Maximum Alert Level 2 | . . . 2 1 Low Security (%) 90 | 100 100 100 76 93 Level 1 6 | . . . 14 6 Level 2 2 | . . . 8 . Level 3 . | . . . . . Level 4 . | . . . . . Level 5 . | . . . . . High Security . | . . . . . Max Security . | . . . . . Peak Influence 463 | . 118 31 463 246 Initial 171 | . . 31 . 171 Average 90 | . 79 4 137 86 Influence Increases 1491 | . 285 . 769 437 Destroy 0b10 Robot/C 920 | . 180 . 480 260 Destroy 0b10 Robot/NC 90 | . 40 . 40 10 Destroy Leader 214 | . 46 . 128 40 Allied During Kill 85 | . . . 80 5 Disable Machine 75 | . 15 . 30 30 Destroy Structure 107 | . 4 . 11 92 Influence Decreases 1487 | . 204 81 330 872 Entered New Map 318 | . . 50 . 268 Time Decay 949 | . 204 31 280 434 Lost Part 160 | . . . 10 150 Lost Ally 60 | . . . 40 20 Squads Dispatched 5 | . 3 . 2 . Investigation 1 | . . . 1 . Extermination . | . . . . . Reinforcement 4 | . 3 . 1 . Assault . | . . . . . Garrison . | . . . . . Intercept . | . . . . . Searches Triggered . | . . . . . Construction Impeded . | . . . . . Haulers Reinforced . | . . . . . Active Scanning Responses . | . . . . . Cargo Convoy Interrupts . | . . . . . Stealth | -11 -10 -10 -9 -9 --------- Run | Yrd Mat Min Mat Min Distress Signals 3 | . . . 3 . Communications Jammed . | . . . . . Distress Signals . | . . . . . Times Spotted 78 | . 13 . 26 39 Peak Tracking Total 7 | . 3 . 6 7 Tactical Retreats 3 | . . . . 3 Traps | -11 -10 -10 -9 -9 ------- Run | Yrd Mat Min Mat Min Traps Triggered 2 | . . . 1 1 Indirectly . | . . . . . Trap Hack Attempts . | . . . . . Triggered . | . . . . . Disarmed . | . . . . . Reprogrammed . | . . . . . Reused . | . . . . . Traps Extracted . | . . . . . Installed . | . . . . . Triggered . | . . . . . Machines | -11 -10 -10 -9 -9 ---------- Run | Yrd Mat Min Mat Min Machines Disabled 5 | . 1 . 2 2 Max in Single Turn 1 | . 1 . 1 1 Machines Repaired . | . . . . . Machines Dismantled . | . . . . . Machines Sabotaged . | . . . . . Overloaded Fab Kills . | . . . . . Hacking | -11 -10 -10 -9 -9 --------- Run | Yrd Mat Min Mat Min Machines Accessed 1 | . . . . 1 Terminals . | . . . . . Fabricators . | . . . . . Repair Stations . | . . . . . Recycling Units . | . . . . . Scanalyzers . | . . . . . Garrison Access . | . . . . . Total Hacks 1 | . . . . 1 Successful 1 | . . . . 1 Failed . | . . . . . Catastrophic . | . . . . . Database Lockouts . | . . . . . Manual . | . . . . . Terminals . | . . . . . Fabricators . | . . . . . Repair Stations . | . . . . . Recycling Units . | . . . . . Scanalyzers . | . . . . . Garrison Access . | . . . . . Terminal Hacks 1 | . . . . 1 Open Door 1 | . . . . 1 Fabricator Hacks . | . . . . . Repair Station Hacks . | . . . . . Recycling Unit Hacks . | . . . . . Scanalyzer . | . . . . . Garrison Access Hacks . | . . . . . Unauthorized Hacks . | . . . . . Terminals . | . . . . . Fabricators . | . . . . . Repair Stations . | . . . . . Recycling Units . | . . . . . Scanalyzers . | . . . . . Garrison Access . | . . . . . Data Cores Recovered . | . . . . . Used . | . . . . . Hacking Detections . | . . . . . Full Trace Events . | . . . . . Feedback Events . | . . . . . Feedback Blocked . | . . . . . Robot Schematics Acquired . | . . . . . Robots Built . | . . . . . Authchips . | . . . . . Time . | . . . . . Total Robot Build Rating . | . . . . . Part Schematics Acquired . | . . . . . Parts Built . | . . . . . Authchips . | . . . . . Time . | . . . . . Total Part Build Rating . | . . . . . Part Studies Acquired . | . . . . . Parts Repaired . | . . . . . Time . | . . . . . Parts Recycled . | . . . . . Recycled Matter . | . . . . . Retrieved Matter . | . . . . . Retrieved Components . | . . . . . Parts Scanalyzed . | . . . . . Part Schematics Acquired . | . . . . . Parts Damaged . | . . . . . Bothacking | -11 -10 -10 -9 -9 ------------ Run | Yrd Mat Min Mat Min Used RIF Installer . | . . . . . Robots Hacked . | . . . . . Non-combat . | . . . . . Combat . | . . . . . Robot Hacks Applied . | . . . . . Relay Couplers Released . | . . . . . Fabnet Peak Effective % . | . . . . . Robots Rewired . | . . . . . Allies Hacked . | . . . . . Hacks Repelled . | . . . . . Allies | -11 -10 -10 -9 -9 -------- Run | Yrd Mat Min Mat Min Total Allies 3 | . . 3 . . Largest Group 3 | . . 3 3 1 Highest-Rated Group 40 | . . 40 40 8 Highest-Rated Ally 16 | . . 16 16 8 Total Orders . | . . . . . Ally Attacks 75 | . . . 71 4 Total Damage 796 | . . . 776 20 Kills 12 | . . . 11 1 Allies Corrupted . | . . . . . Allies Melted . | . . . . . Intel | -11 -10 -10 -9 -9 ------- Run | Yrd Mat Min Mat Min Active Infowar (turns) . | . . . . . Robot Analysis Total . | . . . . . Derelict Logs Recovered 1 | . . . . 1 Drone Launches . | . . . . . Drone Recoveries . | . . . . . Exploration | -11 -10 -10 -9 -9 ------------- Run | Yrd Mat Min Mat Min Turns Passed 2655 | 29 455 304 791 1076 Spaces Moved 1506 | 23 256 85 423 719 Core 107 | 9 . . . 98 Treads 165 | . . . . 165 Legs 851 | 14 256 85 423 73 Wheels . | . . . . . Hover . | . . . . . Flight 383 | . . . . 383 Fastest Speed 32 | 50 120 120 120 32 Average Speed 114 | 92 120 120 127 105 Slowest Speed 300 | 120 120 120 190 300 Overloaded Moves . | . . . . . Propulsion Burnouts . | . . . . . Robots Hopped 4 | . . . . 4 Potential Cave-ins . | . . . . . Cave-ins Triggered . | . . . . . Exploration Rate (%) 37 | 3 54 23 37 69 Regions Visited 4 Branch Regions 2 Pre-discovered Areas . | . . . . . Known Exits Taken . | . . . . . Unknown Exits Taken 4 | 1 1 1 1 . Scrap Searched 1 | . . . . 1 Spaces Dug . | . . . . . Terrain Destroyed 154 | . 2 . 6 146 Melee . | . . . . . Projectile 19 | . 2 . 6 11 AOE 135 | . . . . 135 Terrain Rammed . | . . . . . Walls Destroyed . | . . . . . Machines Disabled . | . . . . . Actions | -11 -10 -10 -9 -9 --------- Run | Yrd Mat Min Mat Min Total 2132 | 30 314 287 573 928 Wait 414 | . 3 203 92 116 Move 1494 | 22 255 84 422 711 Hop 4 | . . . . 4 Pick Up 25 | 4 6 . 5 10 Fast Attach 4 | . . . . 4 Attach 21 | 4 2 . 1 14 Detach . | . . . . . Swap 10 | . 4 . 4 2 Drop 5 | . . . 3 2 Fire 154 | . 44 . 46 64 Melee . | . . . . . Ram . | . . . . . Kick . | . . . . . Crush 1 | . . . . 1 Escape Stasis . | . . . . . Rewire . | . . . . . Trap . | . . . . . Miscellaneous . | . . . . . Route ------- -11/Scrapyard -10/Materials (discovered 3 exits: [*Mat x2] / [*Min]) -10/Mines -9/Materials (discovered 4 exits: [*Mat x2] / *Min / [*Sto]) -9/Mines (discovered 1 exit: [*Mat]) History --------- Turn | Location | Event 4 | -11/Scrapyard | Discovered new exit (range 15) 30 | -11/Scrapyard | Entered Materials 201 | -10/Materials | Discovered new exit (range 12) 301 | -10/Materials | Build established: Mutant 319 | -10/Materials | Discovered new exit (range 14) 472 | -10/Materials | Discovered new exit (range 11) 485 | -10/Materials | Entered Mines 514 | -10/Mines | Discovered new exit (range 13) 544 | -10/Mines | Assisted by bots powering up and referring to "LRC-V3" 789 | -10/Mines | Entered Materials 789 | -9/Materials | Accompanied by 3 allies 789 | -9/Materials | Evolved 2 slots: Utility x1, Weapon x1 1248 | -9/Materials | Build established: Tank 1280 | -9/Materials | Discovered new exit (range 16) 1402 | -9/Materials | Discovered new exit (range 7) 1462 | -9/Materials | Destroyed 7 combat bots 1476 | -9/Materials | Discovered new exit (range 11) 1572 | -9/Materials | Discovered new exit (range 6) 1580 | -9/Materials | Entered Mines 1580 | -9/Mines | Accompanied by 1 ally 1604 | -9/Mines | Met a Derelict bent on vengeance 1616 | -9/Mines | Learned Materials emergency access door positions 1642 | -9/Mines | Discovered new exit (range 8) 2271 | -9/Mines | Assembled infested the area 2274 | -9/Mines | Met a Derelict who couldn't figure out how to use a Trap Extractor 2373 | -9/Mines | Core integrity fell below 50% 2412 | -9/Mines | Core integrity fell below 20% 2421 | -9/Mines | Lost 7 parts (2n3u2w) 2436 | -9/Mines | Destroyed 10 combat bots 2656 | -9/Mines | Destroyed by as-88245 with Assembled Heavy Rifle Last Messages --------------- U-05 Engineer lays Concrete. K-01 Serf collects debris. U-05 Engineer lays Concrete. K-01 Serf collects debris. U-05 Engineer builds a Wall. NDK6I OF&0SWKBAX#Z 1 IVJZDSQ19TSW,QDC K-01 Serf collects debris. U-05 Engineer lays Concrete. K-01 Serf collects debris. U-05 Engineer lays Concrete. U-05 Engineer builds a Wall. The unstable cave ceiling collapses. U-05 Engineer builds a Wall. K-01 Serf collects debris. The unstable cave ceiling collapses. K-01 Serf collects debris. System corrupted: Energy discharge (-20). as-32169 destroyed. System corrupted: Hvy. Ion Cannon failed to cycle. Map ----- +----------------------------------------------------+ | ???????????#### # # ###??????? #????? | | ???????????? #### ###### #?????? | | ???????????????# % ### #?????? | | ????????????????# # *##### #????? | | ?????????????????# =##### ???? | | ?????????????????# # *!=%=| ???? | | ????????????????## # % %#### ???? | | ????????????????# ## ! ##??? ????? | | ???????????????## ### # ##?????? ????? | | ???????????????# ## #???????? ?????? | | ???????????????# """ ### ##???????????????? | | ??????????????## """ ### #????????????????? | | ?????????????## """ #### #????????????????? | | ????????????## ### ###??????????????? | | ????????????# ### ### # #??????????????? | | ???????????# ##?# #?# ###??????????????? | | ???????????# #???# ### #??????????????? | | ???####????###????# = #??????????????? | | ??## ##??????????###### #??????????????? | | ?## #???????????????# #??????????????? | | ?# #???????????????### [# ##??????????????? | | ?# #?????????????????###% # #???????????????? | | ## ###????????###????# [!# #???????????????? | | ### "##########"###### %!###???????????????? | | ## !*=%== % ## ###??????????????? | | ###*########## #@ ###????????????? | | ## ##?#!#????????#* ! %=% % ######## #???? | | ## ###??# #????????# = =% #???? | | ?# ##????# #????????#####;# !*=! a #???? | | ?# ####### #?????????????#####%=a ###### ##???? | | ?# #?????????????????##! ##??????????? | | ?# #########??????????????????# #??????????? | | ?# ###??????????????????????????# #??????????? | | ?# #???????????????????????????## #??????????? | | ?# #???????????????????????????# #??????????? | | ?# ????????????????#########???# ##??????????? | | ?# ????????????????# #???# ###???????????? | | ?# ????????????????# ##### #?????????????? | | ?# ????????????????# "" #?????????????? | | ?# ????????????????# " ##### #?????????????? | | ?##????????????????# %* #??## ##????????????? | | ???????????????????# % #?## ### ##???????? | | #??????????????????# " "[ #?# = = #??????? | | #??????????????????# ""% ## [% #?????? | | ???????????????????# """ # < ## #?????? | | ???????????????????# # ##?# ##?????? | | ???????????????????########## #????# ###??????? | | ????????????????????????????###??????###????????? | | ????????????????????????????????????????????????? | | ????????????????????????????????????????????????? | +----------------------------------------------------+ Best States ------------- Heat Dissipation 42 Energy Generation 14 Energy Capacity 280 Matter Stores 300 Matter Capacity 300 Sight Range 16 Terrain Scan Density 10 Armor Coverage 600 Core Shielding 20 Evasion (%) 63 Recoil Reduction 1 Item Schematics ----------------- None Robot Schematics ------------------ None Fabricated ------------ Nothing Repaired ---------- Nothing Studied --------- None Alien Tech Used ----------------- None Achievements -------------- None Challenges ------------ None Game ------ Seed RecyclingTerrorShovel Manual? 0 Play Time 00:19:14 Cumulative 235.2 hours Start 2026.02.10 @ 18:48:48 End 2026.02.10 @ 19:05:27 Sessions 1 Manual Loads 0 Difficulty Rogue Special Mode None Game No. 650 Rogue 649 Adventurer 1 Explorer 0 Win Type - Total 0 Types 0/0/0/0/0/0/0/0/0/0 Lore% 65 Gallery% 61 Achievement% 40 Wizard Run 0 Options --------- Layout 1 ASCII 0 Keyboard 0 Movement Mouse Keybinds 0 Fullscreen 1 Font 24/Smallcaps Map View 50x35 Zoom Use 0% Tactical HUD 0 Map Filters NONE Filters NONE Steam 1 RUN: af7a4beb-f3ad-4289-aeb5-08807f19a484